Cogmind - Beta 10.2 @@@ ROGUE MODE // 2020.12.25 @ 11:00:17 Player: Perseus Result: Destroyed by S-10 Pest with Light Assault Rifle Performance ------------- Evolutions (0) 0 Regions Visited (2) 400 Robots Destroyed (38) 190 Value Destroyed (533) 533 Prototype IDs (0) 0 Alien Tech Used (0) 0 Bonus (0) 0 TOTAL SCORE: 1123 Bonus ------- None Cogmind --------- Core Integrity 0/250 Matter 294/300 Energy 246/250 System Corruption 0% Temperature Cool (0) Movement Walking (120) Location -10/Mines Parts ------- > --- POWER (1) -------- Ion Engine > --- PROPULSION (2) --- Aluminum Leg > --- UTILITY (2) ------ Improved Terrain Scanner Seismic Analyzer > --- WEAPON (2) ------- Light Assault Rifle Light Assault Rifle > --- INVENTORY (4) ---- Medium Storage Unit Large Storage Unit Peak State ------------ > --- POWER ------------ Ion Engine > --- PROPULSION ------- Aluminum Leg Aluminum Leg > --- UTILITY ---------- Improved Terrain Scanner Seismic Analyzer > --- WEAPON ----------- Particle Gun Assault Rifle > --- INVENTORY -------- Ion Engine Medium Storage Unit Large Storage Unit Light Assault Rifle [Rating: 9] Favorites ----------- Power Ion Engine Engine Ion Engine Propulsion Aluminum Leg Leg Aluminum Leg Utility Seismic Analyzer Device Improved Terrain Scanner Processor Seismic Analyzer Weapon Light Assault Rifle Energy Gun Small Laser Ballistic Gun Light Assault Rifle Build | -11 -10 -10 ------- Run | Scr Mat Min Slots Evolved . | . . . Power . | . . . Propulsion . | . . . Utility . | . . . Weapon . | . . . Parts Attached 24 | 7 12 5 Power 3 | 1 1 1 Engine 3 | 1 1 1 Core . | . . . Reactor . | . . . Propulsion 8 | 2 5 1 Treads . | . . . Leg 8 | 2 5 1 Wheel . | . . . Hover . | . . . Flight . | . . . Utility 3 | 2 1 . Device 2 | 1 1 . Storage . | . . . Processor 1 | 1 . . Hackware . | . . . Protection . | . . . Artifact . | . . . Weapon 10 | 2 5 3 Energy Gun 4 | 1 2 1 Energy Cannon . | . . . Ballistic Gun 6 | 1 3 2 Ballistic Cannon . | . . . Launcher . | . . . Special Weapon . | . . . Impact Weapon . | . . . Slashing Weapon . | . . . Piercing Weapon . | . . . Special Melee Weapon . | . . . Unidentified Prototypes . | . . . Parts Lost 6 | . . 6 Power 1 | . . 1 Propulsion 2 | . . 2 Utility . | . . . Weapon 3 | . . 3 Highest Loss Streak 6 | . . 6 Average Slot Usage (%) 97 | . 100 89 Engine 13 | . 14 12 Leg 26 | . 28 22 Device 14 | . 14 14 Processor 14 | . 14 14 Energy Gun 11 | . 12 11 Ballistic Gun 15 | . 16 14 Naked Turns . | . . . Heaviest Build 10 | 8 10 10 Greatest Support 20 | 20 20 20 Greatest Overweight (x) . | . . . Average Overweight (x) . | . . . Largest Inventory Capacity 4 | 4 4 4 Average Capacity 4 | 4 4 4 Most Carried 4 | 4 4 4 Average Carried 3 | 2 3 3 Final Capacity 4 | 4 4 4 Final Carried 4 | 4 4 2 Class Distribution -------------------- 77% | Mutant 22% | Scavenger-Mutant Dominant Class ---------------- Mutant | -10/Materials Scavenger-Mutant | -10/Mines Resources | -11 -10 -10 ----------- Run | Scr Mat Min Matter Collected 688 | 410 217 61 Remotely . | . . . Salvage Created 897 | 259 354 284 Parts 77 | 30 23 24 Haulers Intercepted . | . . . Recyclers Shooed 1 | . 1 . Parts Field Recycled . | . . . Retrieved Matter . | . . . Parts Self-Destructed . | . . . Prevented . | . . . Kills | -11 -10 -10 ------- Run | Scr Mat Min Combat Hostiles Destroyed 23 | . 11 12 Guns 23 | . 11 12 Classes Destroyed 6 | 3 3 . Worker 2 | 2 . . Tunneler 9 | 9 . . Recycler 2 | 1 . 1 Watcher 2 | . 2 . Swarmer 16 | . 6 10 Grunt 7 | . 5 2 Best Kill Streak 10 | 5 6 10 Combat Bots Only 9 | . 5 9 Max Kills in Single Turn 1 | 1 1 1 Gunslinging . | . . . Exploded . | . . . Melee . | . . . Uniques/NPCs Destroyed . | . . . Combat | -11 -10 -10 -------- Run | Scr Mat Min Damage Taken 1079 | . 442 637 Core 257 | . 105 152 Absorbed by Shields . | . . . Core Remaining (%) 100 | 100 . . Volleys Fired 141 | 40 52 49 Largest 2 | 2 2 2 Hottest 105 | 60 105 85 Shots Fired 255 | 79 99 77 Gun 255 | 79 99 77 Cannon . | . . . Launcher . | . . . Special . | . . . Kinetic 152 | 40 65 47 Thermal 103 | 39 34 30 Explosive . | . . . Electromagnetic . | . . . Robot Hit Streak 12 | 7 12 12 Robot Miss Streak 5 | 4 4 5 Penetration Max . | . . . Secondary Targets 2 | . . 2 Max Gunslinging Chain 1 | . . 1 Shots Hit Robots 159 | 52 62 45 Core Hits 55 | 15 21 19 Critical Hits 1 | . 1 . Critical Kills . | . . . Critical Parts Destroyed 1 | . 1 . Melee Attacks . | . . . Impact . | . . . Slashing . | . . . Piercing . | . . . Sneak Attacks . | . . . Combat Hostiles . | . . . Follow-up Attacks . | . . . Damage Inflicted 1536 | 537 546 453 Guns 1536 | 537 546 453 Cannons . | . . . Explosions . | . . . Melee . | . . . Ramming . | . . . Kinetic 690 | 181 305 204 Thermal 846 | 356 241 249 Explosive . | . . . Electromagnetic . | . . . Impact . | . . . Slashing . | . . . Piercing . | . . . Highest Corruption . | . . . Average Corruption . | . . . Corruption Purged . | . . . Overload Shots . | . . . Overflow Damage . | . . . Projectiles . | . . . Explosions . | . . . Melee . | . . . Knockbacks . | . . . Impact . | . . . Kinetic . | . . . Secondary . | . . . Self-Inflicted Damage . | . . . Shots . | . . . Rammed . | . . . Targets Rammed . | . . . Kicked . | . . . Crushed . | . . . Highest Temperature 284 | 40 76 284 Average Temperature 49 | 19 29 95 Received Heat Transfer 183 | . 117 66 Effects 1 | . . 1 Interference 1 | . . 1 Siege Activations . | . . . Robots Corrupted . | . . . Combat Hostiles . | . . . Parts Fried . | . . . Impact Corruptions . | . . . Robots Melted . | . . . Combat Hostiles . | . . . Parts Melted 2 | . 1 1 Heat Transferred 1933 | 800 549 584 Parts Sabotaged . | . . . Parts Stolen . | . . . Parts Stripped . | . . . Power Chain Reactions . | . . . Missiles Intercepted . | . . . Alert | -11 -10 -10 ------- Run | Scr Mat Min Peak Influence 352 | 60 352 343 Initial 73 | . 39 73 Average 130 | 28 158 203 Maximum Alert Level 1 | . 1 1 Low Security (%) 74 | 100 67 54 Level 1 25 | . 32 45 Level 2 . | . . . Level 3 . | . . . Level 4 . | . . . Level 5 . | . . . High Security . | . . . Max Security . | . . . Squads Dispatched 4 | . 4 . Investigation 3 | . 3 . Extermination . | . . . Reinforcement 1 | . 1 . Assault . | . . . Garrison . | . . . Intercept . | . . . Construction Impeded . | . . . Haulers Reinforced . | . . . Stealth | -11 -10 -10 --------- Run | Scr Mat Min Distress Signals 1 | . . 1 Communications Jammed . | . . . Distress Signals . | . . . Times Spotted 35 | . 18 17 Peak Tracking Total 5 | . 5 4 Tactical Retreats 3 | . 1 2 Traps | -11 -10 -10 ------- Run | Scr Mat Min Traps Triggered 1 | . 1 . Indirectly . | . . . Trap Hack Attempts . | . . . Triggered . | . . . Disarmed . | . . . Reprogrammed . | . . . Reused . | . . . Traps Extracted . | . . . Installed . | . . . Triggered . | . . . Machines | -11 -10 -10 ---------- Run | Scr Mat Min Machines Disabled . | . . . Max in Single Turn . | . . . Machines Sabotaged . | . . . Garrisons Compromised . | . . . Overloaded Fab Kills . | . . . Fab Network Shutdowns . | . . . Hacking | -11 -10 -10 --------- Run | Scr Mat Min Machines Accessed 3 | . 3 . Terminals 2 | . 2 . Fabricators . | . . . Repair Stations . | . . . Recycling Units 1 | . 1 . Scanalyzers . | . . . Garrison Access . | . . . Total Hacks 9 | . 9 . Successful 3 | . 3 . Failed 6 | . 6 . Catastrophic 1 | . 1 . Database Lockouts . | . . . Manual 8 | . 8 . Terminals 8 | . 8 . Fabricators . | . . . Repair Stations . | . . . Recycling Units 1 | . 1 . Scanalyzers . | . . . Garrison Access . | . . . Terminal Hacks . | . . . Fabricator Hacks . | . . . Repair Station Hacks . | . . . Recycling Unit Hacks . | . . . Scanalyzer . | . . . Garrison Access Hacks . | . . . Unauthorized Hacks 3 | . 3 . Terminals 2 | . 2 . Botnet 1 | . 1 . Operators 1 | . 1 . Fabricators . | . . . Repair Stations . | . . . Recycling Units 1 | . 1 . Tunnel 1 | . 1 . Scanalyzers . | . . . Garrison Access . | . . . Data Cores Recovered . | . . . Used . | . . . Hacking Detections 2 | . 2 . Full Trace Events 2 | . 2 . Feedback Events . | . . . Feedback Blocked . | . . . Robot Schematics Acquired . | . . . Robots Built . | . . . Matter . | . . . Time . | . . . Total Robot Build Rating . | . . . Part Schematics Acquired . | . . . Parts Built . | . . . Matter . | . . . Time . | . . . Total Part Build Rating . | . . . Parts Repaired . | . . . Time . | . . . Parts Recycled . | . . . Recycled Matter . | . . . Retrieved Matter . | . . . Retrieved Components . | . . . Parts Scanalyzed . | . . . Part Schematics Acquired . | . . . Parts Damaged . | . . . Bothacking | -11 -10 -10 ------------ Run | Scr Mat Min Used RIF Installer . | . . . Robots Hacked . | . . . Non-combat . | . . . Combat . | . . . Robot Hacks Applied . | . . . Relay Couplers Released . | . . . Robots Rewired . | . . . Allies Hacked . | . . . Hacks Repelled . | . . . Allies | -11 -10 -10 -------- Run | Scr Mat Min Total Allies . | . . . Largest Group . | . . . Highest-Rated Group . | . . . Highest-Rated Ally . | . . . Total Orders . | . . . Ally Attacks . | . . . Total Damage . | . . . Kills . | . . . Allies Corrupted . | . . . Allies Melted . | . . . Intel | -11 -10 -10 ------- Run | Scr Mat Min Robot Analysis Total . | . . . Derelict Logs Recovered 1 | . . 1 Drone Launches . | . . . Drone Recoveries . | . . . Exploration | -11 -10 -10 ------------- Run | Scr Mat Min Turns Passed 959 | 278 482 199 Spaces Moved 423 | 129 235 59 Core 7 | 7 . . Treads . | . . . Legs 416 | 122 235 59 Wheels . | . . . Hover . | . . . Flight . | . . . Fastest Speed 50 | 50 120 120 Average Speed 118 | 116 120 120 Slowest Speed 120 | 120 120 120 Overloaded Moves . | . . . Propulsion Burnouts . | . . . Robots Hopped . | . . . Cave-ins Triggered . | . . . Exploration Rate (%) 23 | 5 51 15 Regions Visited 2 Branch Regions 1 Pre-discovered Areas 2 | . 1 1 Known Exits Taken . | . . . Unknown Exits Taken 2 | 1 1 . Scrap Searched . | . . . Spaces Dug . | . . . Terrain Destroyed . | . . . Melee . | . . . Projectile . | . . . AOE . | . . . Terrain Rammed . | . . . Walls Destroyed . | . . . Machines Disabled . | . . . Actions | -11 -10 -10 --------- Run | Scr Mat Min Total 658 | 186 351 121 Wait 43 | . 38 5 Move 421 | 128 234 59 Hop . | . . . Pick Up 16 | 11 2 3 Fast Attach 3 | . 3 . Attach 12 | 7 . 5 Detach . | . . . Swap 9 | . 9 . Drop 13 | . 13 . Fire 141 | 40 52 49 Melee . | . . . Ram . | . . . Kick . | . . . Crush . | . . . Escape Stasis . | . . . Rewire . | . . . Trap . | . . . Miscellaneous . | . . . Route ------- -11/Scrapyard -10/Materials (discovered 2 exits: [*Mat] / [*Min]) -10/Mines History --------- Turn | Location | Event 4 | -11/Scrapyard | Discovered new exit (range 16) 279 | -11/Scrapyard | Entered Materials 318 | -10/Materials | Build established: Mutant 586 | -10/Materials | Discovered new exit (range 8) 743 | -10/Materials | Discovered new exit (range 6) 761 | -10/Materials | Entered Mines 798 | -10/Mines | Core integrity fell below 50% 899 | -10/Mines | Core integrity fell below 20% 940 | -10/Mines | Destroyed 9 combat bots 940 | -10/Mines | Learned location of Zion (-6) 960 | -10/Mines | Destroyed by S-10 Pest with Light Assault Rifle Last Messages --------------- 00912_ S-10 Pest destroyed. 00915_ Lgt. Assault Rifle destroyed. 00915_ S-10 Pest destroyed. 00922_ Acquired Lgt. Assault Rifle. 00925_ Acquired 37 matter. 00929_ K-01 Serf collects debris. 00930_ Acquired Lgt. Assault Rifle. 00932_ K-01 Serf collects debris. 00932_ Acquired Aluminum Leg. 00936_ K-01 Serf collects debris. 00940_ Acquired derelict log, extracted data. World map updated: -6/Zion. 00942_ Aluminum Leg destroyed. 00943_ Sml. Laser destroyed. 00949_ K-01 Serf collects debris. 00949_ Acquired 2 matter. 00951_ Acquired 10 matter. 00951_ S-10 Pest destroyed. 00952_ Acquired 2 matter. 00952_ K-01 Serf collects debris. Map ----- +----------------------------------------------------+ | ?????????????????????????????????????????????????? | | ?????????????????????????????????????????????????? | | ?????????????????????????????????????????????????? | | ?????????????????????????????????????????????????? | | ?????????????????????????????????????????????????? | | ?????????????????????????????????????????????????? | | ?????????????????????????????????????????????????? | | ?????????????????????????????????????????????????? | | ?????????????????????????????????????????????????? | | ???????????????????#????##???????????????????????? | | ????????????????????????#???#????????????????????? | | ??????????????? ??????? ###??????????????????????? | | ?????????? ????? ? ?? ? #??#????? ???????????????? | | ??????????????? ?? ?? ? #####? ?????????????????? | | ?????????????????"???"? #?###?? ????????????????? | | ?????????????"??""" """ #????#???#???????????????? | | ????????#?? ??" """ """ ###?#?? ? ?????????????? | | ?????????????? #?##?# ###?#????????????? | | ??????????????? """ """ #??#?# ?#?#?##???????????? | | ????????????""??""" """ #?###???###?#?#?#????????? | | ?????????????"" "?" """ #### ? #####??#??? ?? | | ???????????? ? ?? #### ?? ##??#???????? | | ??????????#?#???#??#?# ##### ####??#??? ?? | | ?????????#?#?######### *[ ####?##???? ? | | ??????????# ##s### ???????? | | ????????#?? ??########=##@##### ? ?????##??? | | ??????????? #?########[##s##?#?# ??### #????#????? | | ??????????# #??####### #%!=####?##?#?# #? ???????? | | ???????#??# #### * =%%% ########## ###???#??? | | ?????????????### %=%*= ######## #####????? | | ??????????#?#### ###%=*=*k ### ##???#???? | | ??????????#???## ?## ==% ###%## ####???#?? | | ????????????#??#? #### ###?# ## """" #####????? | | ??????????? #??? ??###### ##### """" ##???? | | ???????????#####? ????## #?###### """" #???? | | ???????????#?## ??? ##### ???#?# ##??? | | ????????????#??? ########?#??####### #??? | | ?????????????## ? ?#####?######???## #?? | | ??????????????? ? ? ???### ?########?## #?? | | ??????????????##?? ? ?### ##?###?#?#?## ##?? | | ??????????????### ? ? ?#? ##?##??#??#?#####??? | | ?????????????????? ? ?????#? #?#??#????????#????? | | ??????????????????????? ????#??#??#??????????????? | | ???????????????????? ? #?#???####??#??????#???? | | ????????????????????#?? ? ? ??####????#??#?????? | | ???????????????????????? ?#???#?###????#??#??????? | | ???????????????????????????#???#??#?????????????#? | | ???????????????????????????????#?????#???????????? | | ????????????????????????????????#???#????????????? | | | +----------------------------------------------------+ Best States ------------- Heat Dissipation 25 Energy Generation 10 Energy Capacity 250 Matter Stores 300 Matter Capacity 300 Sight Range 16 Terrain Scan Range 16 Terrain Scan Density 60 Evasion (%) 40 Item Schematics ----------------- None Robot Schematics ------------------ None Fabricated ------------ Nothing Alien Tech Used ----------------- None Achievements -------------- None Challenges ------------ None Game ------ Seed AntigravTitaniumJammer Manual? 0 Play Time 00:10:42 Cumulative 207.5 hours Start 2020.12.25 @ 10:51:23 End 2020.12.25 @ 11:00:17 Sessions 1 Manual Loads 0 Difficulty Rogue Special Mode None Game No. 64 Rogue 41 Adventurer 23 Explorer 0 Win Type - Total 8 Types 7/0/0/1/0/0/0/0/0 Lore% 87 Gallery% 85 Achievement% 68 Wizard Run 0 Options --------- ASCII 0 Keyboard 0 Movement Mouse Keybinds 0 Fullscreen 1 Font 18/SmallcapsGlow Map View 76x50 Tactical HUD 1 Map Filters NONE Filters NONE Steam 1 RUN: b8ed74ca-d35c-4f97-8fd0-dcde54e0bc92